Cogmind - Beta 13 @@@ ROGUE MODE // 2024.05.01 @ 14:43:41 Player: TheGoodBud Result: Destroyed by MV-58M(R) with Subdweller Beam Cannon Performance ------------- Evolutions (0) 0 Regions Visited (2) 400 Robots Destroyed (19) 95 Value Destroyed (433) 433 Prototype IDs (5) 100 Alien Tech Used (0) 0 Bonus (0) 0 TOTAL SCORE: 1028 Bonus ------- None Cogmind --------- Core Integrity 0/250 Matter 205/300 Energy 68/100 System Corruption 0% Temperature Warm (174) Movement Core (350) Ox6 Location -10/Subcaves Parts ------- > --- POWER (1) -------- (None) > --- PROPULSION (2) --- (None) > --- UTILITY (2) ------ Improved Heat Sink Large Storage Unit > --- WEAPON (2) ------- (None) > --- INVENTORY (15) --- (None) Peak State ------------ > --- POWER ------------ Light Nuclear Core > --- PROPULSION ------- Aluminum Leg Aluminum Leg > --- UTILITY ---------- Improved Targeting Computer Improved Targeting Computer > --- WEAPON ----------- Light Assault Rifle Light Assault Rifle > --- INVENTORY -------- Aluminum Leg Improved Heat Sink Large Storage Unit Light Assault Rifle Grenade Launcher [Rating: 11] Favorites ----------- Power Light Nuclear Core Engine Light Ion Engine Power Core Light Nuclear Core Propulsion Aluminum Leg Leg Aluminum Leg Utility Improved Targeting Computer Device Improved Heat Sink Storage Large Storage Unit Processor Improved Targeting Computer Protection Scrap Shield Weapon Assault Rifle Ballistic Gun Assault Rifle Launcher Grenade Launcher Build | -11 -10 -10 ------- Run | Yrd Mat Sub Slots Evolved . | . . . Power . | . . . Propulsion . | . . . Utility . | . . . Weapon . | . . . Parts Attached 23 | 5 12 6 Power 4 | 1 3 . Engine 3 | 1 2 . Core 1 | . 1 . Reactor . | . . . Propulsion 6 | 2 4 . Treads . | . . . Leg 6 | 2 4 . Wheel . | . . . Hover . | . . . Flight . | . . . Utility 6 | . 3 3 Device 1 | . . 1 Storage 1 | . . 1 Processor 3 | . 3 . Hackware . | . . . Protection 1 | . . 1 Artifact . | . . . Weapon 7 | 2 2 3 Energy Gun . | . . . Energy Cannon . | . . . Ballistic Gun 6 | 2 2 2 Ballistic Cannon . | . . . Launcher 1 | . . 1 Special Weapon . | . . . Impact Weapon . | . . . Slashing Weapon . | . . . Piercing Weapon . | . . . Special Melee Weapon . | . . . Unidentified Prototypes . | . . . Parts Lost 7 | . . 7 Power 1 | . . 1 Propulsion 2 | . . 2 Utility 1 | . . 1 Weapon 3 | . . 3 Highest Loss Streak 7 | . . 7 To Critical Strikes . | . . . Average Slot Usage (%) 96 | . 97 81 Engine 5 | . 4 13 Core 8 | . 9 . Leg 27 | . 27 25 Processor 23 | . 25 1 Protection 1 | . . 11 Ballistic Gun 27 | . 28 26 Naked Turns . | . . . Heaviest Build 25 | 5 9 25 Greatest Support 20 | 20 20 20 Greatest Overweight (x) 1 | . . 1 Average Overweight (x) . | . . . Largest Inventory Capacity 15 | 5 5 15 Average Capacity 5 | 5 5 5 Most Carried 5 | 2 5 5 Average Carried 4 | . 4 3 Final Capacity 15 | 5 5 15 Final Carried 5 | . 5 . Class Distribution -------------------- 100% | Mutant Dominant Class ---------------- Mutant | -10/Materials Mutant | -10/Subcaves Resources | -11 -10 -10 ----------- Run | Yrd Mat Sub Matter Collected 565 | 266 299 . Remotely . | . . . Salvage Created 525 | 41 372 112 Parts 37 | . 32 5 Haulers Intercepted . | . . . Recyclers Shooed 1 | . 1 . Parts Field Recycled . | . . . Retrieved Matter . | . . . Parts Self-Destructed . | . . . Prevented . | . . . Kills | -11 -10 -10 ------- Run | Yrd Mat Sub Combat Hostiles Destroyed 14 | 1 10 3 Guns 11 | 1 10 . AOE 3 | . . 3 Classes Destroyed 6 | 1 4 1 Recycler 1 | . 1 . Operator 1 | . 1 . Watcher 3 | . 3 . Swarmer 6 | . 6 . Grunt 5 | 1 4 . Subdweller 3 | . . 3 Best Kill Streak 4 | 1 4 3 Combat Bots Only 3 | 1 3 3 Max Kills in Single Turn 3 | 1 1 3 Gunslinging . | . . . Exploded 3 | . . 3 Melee . | . . . Uniques/NPCs Destroyed . | . . . Combat | -11 -10 -10 -------- Run | Yrd Mat Sub Hostile Shots Fired 111 | 10 60 41 Missed 34 | 5 18 11 Damage Taken 1136 | 55 382 699 Core 267 | 10 95 162 Absorbed by Shields . | . . . Regen/Repaired (Parts) 22 | . 22 . Core Remaining (%) 96 | 96 . . Volleys Fired 59 | 8 43 8 Largest 2 | 2 2 2 Hottest 40 | 40 40 40 Shots Fired 116 | 16 86 14 Gun 114 | 16 86 12 Cannon . | . . . Launcher 2 | . . 2 Special . | . . . Kinetic 114 | 16 86 12 Thermal . | . . . Explosive 2 | . . 2 Electromagnetic . | . . . Robot Hit Streak 11 | 5 11 5 Robot Miss Streak 5 | 2 5 1 Penetration Max . | . . . Secondary Targets 1 | . 1 . Max Gunslinging Chain 1 | . 1 . Shots Hit Robots 66 | 10 46 10 Core Hits 34 | 2 26 6 Critical Kills . | . . . Critical Parts Destroyed . | . . . Critical Strikes 1 | . . 1 Destroy 1 | . . 1 Melee Attacks . | . . . Impact . | . . . Slashing . | . . . Piercing . | . . . Sneak Attacks . | . . . Combat Hostiles . | . . . Follow-up Attacks . | . . . Damage Inflicted 1058 | 81 499 478 Guns 675 | 81 496 98 Cannons . | . . . Explosions 380 | . . 380 Melee . | . . . Ramming 3 | . 3 . Kinetic 675 | 81 496 98 Thermal . | . . . Explosive 380 | . . 380 Electromagnetic . | . . . Impact . | . . . Slashing . | . . . Piercing . | . . . Highest Corruption . | . . . Average Corruption . | . . . Corruption Purged . | . . . Corruption Blocked . | . . . Overload Shots . | . . . Overflow Damage . | . . . Projectiles . | . . . Explosions . | . . . Melee . | . . . Knockbacks . | . . . Impact . | . . . Kinetic . | . . . Secondary . | . . . Self-Inflicted Damage . | . . . Shots . | . . . Rammed . | . . . Targets Rammed 1 | . 1 . Kicked 1 | . 1 . Crushed . | . . . Highest Temperature 235 | 12 25 235 Average Temperature 27 | 7 9 200 Received Heat Transfer 561 | 30 90 441 Siege Activations . | . . . Robots Corrupted . | . . . Combat Hostiles . | . . . Parts Fried . | . . . Impact Corruptions . | . . . Robots Melted . | . . . Combat Hostiles . | . . . Parts Melted . | . . . Heat Transferred . | . . . Parts Sabotaged . | . . . Parts Stolen . | . . . Parts Stripped . | . . . Power Chain Reactions . | . . . Alert | -11 -10 -10 ------- Run | Yrd Mat Sub Peak Influence 286 | 20 286 . Initial 13 | . 13 . Average 103 | 1 110 . Maximum Alert Level 1 | . 1 . Low Security (%) 94 | 100 93 . Level 1 5 | . 6 . Level 2 . | . . . Level 3 . | . . . Level 4 . | . . . Level 5 . | . . . High Security . | . . . Max Security . | . . . Squads Dispatched 2 | . 2 . Investigation 1 | . 1 . Extermination . | . . . Reinforcement 1 | . 1 . Assault . | . . . Garrison . | . . . Intercept . | . . . Searches Triggered . | . . . Construction Impeded . | . . . Haulers Reinforced . | . . . Active Scanning Responses . | . . . Cargo Convoy Interrupts . | . . . Stealth | -11 -10 -10 --------- Run | Yrd Mat Sub Distress Signals . | . . . Communications Jammed . | . . . Distress Signals . | . . . Times Spotted 30 | 1 18 11 Peak Tracking Total 9 | 1 4 9 Tactical Retreats . | . . . Traps | -11 -10 -10 ------- Run | Yrd Mat Sub Traps Triggered . | . . . Indirectly . | . . . Trap Hack Attempts . | . . . Triggered . | . . . Disarmed . | . . . Reprogrammed 5 | . 5 . Reused 1 | . 1 . Traps Extracted . | . . . Installed . | . . . Triggered 1 | . 1 . Machines | -11 -10 -10 ---------- Run | Yrd Mat Sub Machines Disabled . | . . . Max in Single Turn . | . . . Machines Repaired . | . . . Machines Dismantled . | . . . Machines Sabotaged . | . . . Overloaded Fab Kills . | . . . Hacking | -11 -10 -10 --------- Run | Yrd Mat Sub Machines Accessed 10 | . 10 . Terminals 8 | . 8 . Fabricators . | . . . Repair Stations 1 | . 1 . Recycling Units 1 | . 1 . Scanalyzers . | . . . Garrison Access . | . . . Total Hacks 30 | . 30 . Successful 19 | . 19 . Failed 11 | . 11 . Catastrophic 1 | . 1 . Database Lockouts . | . . . Manual 1 | . 1 . Terminals 23 | . 23 . Fabricators . | . . . Repair Stations 3 | . 3 . Recycling Units 4 | . 4 . Scanalyzers . | . . . Garrison Access . | . . . Terminal Hacks 13 | . 13 . Record 1 | . 1 . Robot Analysis 1 | . 1 . Prototype ID Bank 2 | . 2 . Alert Level 1 | . 1 . Locate Traps 3 | . 3 . Reprogram Traps 2 | . 2 . Dispatch Records 1 | . 1 . Maintenance Status 1 | . 1 . Surveillance Status 1 | . 1 . Fabricator Hacks . | . . . Repair Station Hacks 2 | . 2 . Scan Component 1 | . 1 . Repair 1 | . 1 . Recycling Unit Hacks 4 | . 4 . Process 1 | . 1 . Report Inventory 3 | . 3 . Scanalyzer . | . . . Garrison Access Hacks . | . . . Unauthorized Hacks . | . . . Terminals . | . . . Fabricators . | . . . Repair Stations . | . . . Recycling Units . | . . . Scanalyzers . | . . . Garrison Access . | . . . Data Cores Recovered 1 | . 1 . Used 1 | . 1 . Hacking Detections 5 | . 5 . Full Trace Events 4 | . 4 . Feedback Events . | . . . Feedback Blocked . | . . . Robot Schematics Acquired . | . . . Robots Built . | . . . Authchips . | . . . Time . | . . . Total Robot Build Rating . | . . . Part Schematics Acquired . | . . . Parts Built . | . . . Authchips . | . . . Time . | . . . Total Part Build Rating . | . . . Parts Repaired 1 | . 1 . Time 26 | . 26 . Parts Recycled . | . . . Recycled Matter 252 | . 252 . Retrieved Matter . | . . . Retrieved Components . | . . . Parts Scanalyzed . | . . . Part Schematics Acquired . | . . . Parts Damaged . | . . . Bothacking | -11 -10 -10 ------------ Run | Yrd Mat Sub Used RIF Installer . | . . . Robots Hacked . | . . . Non-combat . | . . . Combat . | . . . Robot Hacks Applied . | . . . Relay Couplers Released . | . . . Fabnet Peak Effective % . | . . . Robots Rewired . | . . . Allies Hacked . | . . . Hacks Repelled . | . . . Allies | -11 -10 -10 -------- Run | Yrd Mat Sub Total Allies . | . . . Largest Group . | . . . Highest-Rated Group . | . . . Highest-Rated Ally . | . . . Total Orders . | . . . Ally Attacks . | . . . Total Damage . | . . . Kills . | . . . Allies Corrupted . | . . . Allies Melted 1 | . . 1 Intel | -11 -10 -10 ------- Run | Yrd Mat Sub Robot Analysis Total 1 | . 1 . Derelict Logs Recovered . | . . . Drone Launches . | . . . Drone Recoveries . | . . . Exploration | -11 -10 -10 ------------- Run | Yrd Mat Sub Turns Passed 1770 | 100 1513 157 Spaces Moved 1214 | 71 1078 65 Core 23 | 23 . . Treads . | . . . Legs 1191 | 48 1078 65 Wheels . | . . . Hover . | . . . Flight . | . . . Fastest Speed 50 | 50 120 120 Average Speed 122 | 97 120 186 Slowest Speed 190 | 120 120 190 Overloaded Moves . | . . . Propulsion Burnouts . | . . . Robots Hopped . | . . . Cave-ins Triggered . | . . . Exploration Rate (%) 37 | 9 97 7 Regions Visited 2 Branch Regions 1 Pre-discovered Areas . | . . . Known Exits Taken . | . . . Unknown Exits Taken 2 | 1 1 . Scrap Searched . | . . . Spaces Dug . | . . . Terrain Destroyed 4 | . . 4 Melee . | . . . Projectile . | . . . AOE 4 | . . 4 Terrain Rammed . | . . . Walls Destroyed . | . . . Machines Disabled . | . . . Actions | -11 -10 -10 --------- Run | Yrd Mat Sub Total 1396 | 89 1220 87 Wait 66 | 1 62 3 Move 1212 | 70 1077 65 Hop . | . . . Pick Up 20 | 5 14 1 Fast Attach 1 | . 1 . Attach 12 | 5 3 4 Detach 2 | . . 2 Swap 10 | . 8 2 Drop 13 | . 11 2 Fire 59 | 8 43 8 Melee . | . . . Ram . | . . . Kick 1 | . 1 . Crush . | . . . Escape Stasis . | . . . Rewire . | . . . Trap . | . . . Miscellaneous . | . . . Route ------- -11/Scrapyard -10/Materials (discovered 6 exits: [*Mat x3] / [*Min x2] / [*Sub]) -10/Subcaves History --------- Turn | Location | Event 2 | -11/Scrapyard | Met Revision 17 69 | -11/Scrapyard | Discovered new exit (range 8) 101 | -11/Scrapyard | Entered Materials 249 | -10/Materials | Discovered new exit (range 15) 310 | -10/Materials | Build established: Mutant 372 | -10/Materials | Discovered new exit (range 15) 477 | -10/Materials | Discovered new exit (range 15) 588 | -10/Materials | Repaired Aluminum Leg 793 | -10/Materials | Discovered new exit (range 11) 1135 | -10/Materials | Discovered new exit (range 5) 1196 | -10/Materials | Discovered new exit (range 9) 1614 | -10/Materials | Entered Subcaves 1737 | -10/Subcaves | Disturbed a concealed Subdweller 1743 | -10/Subcaves | Ambushed by swarm of Subdwellers 1744 | -10/Subcaves | Core integrity fell below 50% 1747 | -10/Subcaves | Ambushed by Subdwellers from Twisted Machinery 1749 | -10/Subcaves | Ambushed by Subdwellers from Twisted Machinery 1749 | -10/Subcaves | Ambushed by Subdwellers from Twisted Machinery 1771 | -10/Subcaves | Core integrity fell below 20% 1771 | -10/Subcaves | Destroyed by MV-58M(R) with Subdweller Beam Cannon Last Messages --------------- JM-9TT(R) suffers critical hit (Destroy). HV Slug penetrates Wall. Critical hit (Destroy). 21-2D0(R) emerges from the Twisted Machinery. Scrap Shield destroyed. HV Slug penetrates 21-2D0(R). 21-2D0(R) suffers critical hit (Destroy). HV Slug penetrates Twisted Machinery. Aluminum Leg destroyed. HV Slug penetrates Twisted Machinery. UO-5XQ(h) destroyed. Assault Rifle destroyed. Lgt. Ion Engine destroyed. Aluminum Leg destroyed. Assault Rifle destroyed. 21-2D0(R) destroyed. D5-MBQ(R) destroyed. V1-DDF(R) destroyed. Critical hit (Meltdown: +270). Grenade Launcher destroyed. Map ----- +----------------------------------------------------+ | ???????????????????????????????????????? | | ???????????????????????????????????????? | | ???????????????????????????????????????? | | ???????????????????????????????????????? | | ???????????????????????????????????????? | | ???????????????????????????????????????? | | ??????????????????#####????????????????? | | ?????????????????## ################?? | | ????????????????## # # # # # #?? | | ????????????????# ##? | | ???????????????## ## #### # #? | | ???????????????# #####??#### ##? | | ???????????????# ##??# ## | | ???????????????# #??# | | ??????????????## #??#### | | ??????????????# #?????# | | ??????????????# ##?????# | | ??????????????## ### #??????# # | | ???????????????###??## #???#??## ## | | ?????????????????###### ## #???###? | | ?????????????????# ### #??????? | | ?????????????????# ##??????? | | ?????????????????# ### ##???????? | | ??????????####?## ## #????????? | | ??????????#